bitfinex-derivatives/quotes_BTCF0:USTF0_20250125
["timestamp","ask_amount","ask_price","bid_price","bid_amount"]
[1737782749099,0.25642085,104620.0,104610.0,0.68604015]
[1737782751199,0.25642085,104620.0,104610.0,0.64567218]
[1737782751591,0.31401889,104620.0,104610.0,0.58807414]
[1737782752202,0.25642085,104620.0,104610.0,0.64567218]
[1737782753504,0.11396482,104620.0,104610.0,0.64567218]
[1737782759798,0.11396482,104620.0,104610.0,0.61233228]
[1737782760396,0.19959963,104620.0,104610.0,0.61233228]
[1737782762111,0.19959963,104620.0,104610.0,0.66993032]
[1737782762408,0.19959963,104620.0,104610.0,0.61233228]
[1737782763006,0.19959963,104620.0,104610.0,0.66993032]
[1737782763310,0.14245603,104630.0,104620.0,0.152957]
[1737782763504,0.14245603,104630.0,104620.0,0.83508344]
[1737782763699,0.11417654,104630.0,104620.0,0.83508344]
[1737782766210,0.11417654,104630.0,104620.0,0.79479298]
[1737782766711,0.11417654,104630.0,104620.0,0.72559298]
[1737782767012,0.11417654,104630.0,104620.0,0.67389494]
[1737782768213,0.05759804,104640.0,104630.0,0.152942]
[1737782768412,0.05759804,104640.0,104630.0,0.5470819]
[1737782769307,0.05759804,104640.0,104630.0,0.60467994]
[1737782769513,0.05759804,104640.0,104630.0,0.5470819]
[1737782769714,0.05759804,104640.0,104630.0,0.54713151]
[1737782770514,0.61902479,104650.0,104630.0,0.54713151]
[1737782771412,0.97982479,104650.0,104630.0,0.54713151]
[1737782771709,0.61902479,104650.0,104630.0,0.54713151]
[1737782771912,0.05759804,104640.0,104630.0,0.54713151]
[1737782772317,0.61902479,104650.0,104630.0,0.54713151]
[1737782772709,0.97982479,104650.0,104630.0,0.54713151]
[1737782772904,0.61902479,104650.0,104630.0,0.54713151]
[1737782776614,0.97982479,104650.0,104640.0,0.152927]
[1737782776821,0.61902479,104650.0,104640.0,0.152927]
[1737782778124,0.97982479,104650.0,104640.0,0.152927]
[1737782780223,0.83736876,104650.0,104640.0,0.152927]
[1737782783020,0.68445276,104650.0,104630.0,0.37098254]
[1737782783222,0.152927,104640.0,104630.0,0.52391954]
[1737782788222,0.29568519,104640.0,104630.0,0.51388038]
[1737782790536,0.35328323,104640.0,104630.0,0.51388038]
[1737782793136,0.36323479,104640.0,104630.0,0.51388038]
[1737782796229,0.30563675,104640.0,104630.0,0.51388038]
[1737782796430,0.30563675,104640.0,104630.0,0.57147842]
[1737782797033,0.30563675,104640.0,104630.0,0.60477842]
[1737782797723,0.30563675,104640.0,104630.0,0.63824442]
[1737782800526,0.30563675,104640.0,104630.0,0.58064638]
[1737782800731,0.47609147,104640.0,104630.0,0.58064638]
[1737782800932,0.47609147,104640.0,104630.0,0.54718038]
[1737782803743,0.30563675,104640.0,104630.0,0.54718038]
[1737782803933,0.29568519,104640.0,104630.0,0.54718038]
[1737782807142,0.71408323,104640.0,104630.0,0.00014338]
[1737782808041,0.35328323,104640.0,104630.0,0.00014338]
[1737782814643,0.52373795,104640.0,104630.0,0.00014338]
[1737782816545,0.52373795,104640.0,104630.0,0.15308538]
[1737782817348,0.52373795,104640.0,104630.0,0.18655293]
[1737782817844,0.88453795,104640.0,104630.0,0.18655293]
[1737782818044,0.52373795,104640.0,104630.0,0.18655293]
[1737782818541,0.88453795,104640.0,104630.0,0.18655293]
[1737782818741,0.52373795,104640.0,104630.0,0.18655293]
[1737782821550,0.94213599,104640.0,104630.0,0.00014338]
[1737782823250,0.7993778,104640.0,104630.0,0.00014338]
[1737782824252,0.74177976,104640.0,104630.0,0.00014338]
[1737782825453,0.68418172,104640.0,104630.0,0.00014338]
[1737782825955,0.74177976,104640.0,104630.0,0.00014338]
[1737782826150,0.68418172,104640.0,104630.0,0.00014338]
[1737782826349,0.74177976,104640.0,104630.0,0.00014338]
[1737782827958,0.17045472,104640.0,104630.0,0.05774142]
[1737782828153,0.17045472,104640.0,104630.0,0.57148342]
[1737782828348,0.17045472,104640.0,104630.0,0.60318342]
[1737782829957,0.2169298,104640.0,104630.0,0.63657264]
[1737782830158,0.2169298,104640.0,104630.0,0.5789746]
[1737782830758,0.2169298,104640.0,104630.0,0.63657264]
[1737782832062,0.2169298,104640.0,104630.0,0.5789746]
[1737782832450,0.2169298,104640.0,104630.0,0.58882649]
[1737782834960,0.14279695,104640.0,104630.0,0.58882649]
[1737782840162,0.14279695,104640.0,104630.0,0.64642453]
[1737782840865,0.14279695,104640.0,104630.0,0.61303531]
[1737782842270,0.14279695,104640.0,104630.0,0.64637954]
[1737782845667,0.25700425,104640.0,104630.0,0.64637954]
[1737782846166,0.25700425,104640.0,104630.0,0.61303531]
[1737782853671,0.25700425,104640.0,104630.0,0.78495805]
[1737782858184,0.14279695,104640.0,104630.0,0.78495805]
[1737782861500,0.14279695,104640.0,104630.0,1.01402813]
[1737782882710,0.25708898,104640.0,104630.0,0.78495805]
[1737782883010,0.11429203,104640.0,104630.0,0.78495805]
[1737782886707,0.14279695,104640.0,104630.0,1.01402813]
[1737782886909,0.14279695,104640.0,104630.0,0.9148782]
[1737782887115,0.14279695,104640.0,104630.0,0.97247624]
[1737782889413,0.14279695,104640.0,104630.0,1.00581818]
[1737782890819,0.14279695,104640.0,104630.0,0.97247624]
[1737782891220,0.14279695,104640.0,104630.0,1.00581945]
[1737782894422,0.14279695,104640.0,104630.0,0.97247624]
[1737782899427,0.14279695,104640.0,104630.0,1.00581678]
[1737782900427,0.14279695,104640.0,104630.0,0.97247624]
[1737782901125,0.17045472,104650.0,104640.0,0.152927]
[1737782901329,0.17045472,104650.0,104640.0,0.62892308]
[1737782905324,0.11425729,104650.0,104640.0,1.0299159]
[1737782905627,0.05556022,104650.0,104640.0,1.07138602]
[1737782906220,0.05556022,104650.0,104640.0,1.08130689]
[1737782908528,0.05556022,104650.0,104640.0,1.03983677]
[1737782909227,0.08561425,104660.0,104650.0,0.152913]
[1737782909427,0.08561425,104660.0,104650.0,0.57131104]
[1737782910632,0.08561425,104660.0,104650.0,0.60281104]
[1737782912333,0.24154603,104670.0,104650.0,0.62151909]
[1737782912634,0.18394799,104670.0,104660.0,0.57129604]
[1737782918340,0.18394799,104670.0,104660.0,0.58094437]
[1737782920140,0.24154603,104670.0,104660.0,0.58094437]
[1737782920635,0.39443003,104670.0,104660.0,0.21049604]
[1737782921043,0.39443003,104670.0,104650.0,0.58297338]
[1737782921044,0.152898,104660.0,104650.0,0.58297338]
[1737782921226,0.21049604,104660.0,104650.0,0.58297338]
[1737782921539,0.21049604,104660.0,104650.0,0.15305338]
[1737782921839,0.26809408,104660.0,104650.0,0.00014338]
[1737782922030,0.21049604,104660.0,104650.0,0.00014338]
[1737782923543,0.29611029,104660.0,104650.0,0.00014338]
[1737782927333,0.21049604,104660.0,104650.0,0.00014338]
[1737782927539,0.62889408,104660.0,104650.0,0.00014338]
[1737782927941,0.57129604,104660.0,104650.0,0.00014338]
[1737782928334,0.62889408,104660.0,104650.0,0.00014338]
[1737782930745,0.7993488,104660.0,104650.0,0.00014338]
[1737782931947,0.80886534,104660.0,104650.0,0.00014338]
[1737782933647,0.7512673,104660.0,104650.0,0.00014338]
[1737782935149,0.89388577,104660.0,104650.0,0.00014338]
[1737782939751,0.95148381,104660.0,104650.0,0.00014338]
[1737782943057,0.89388577,104660.0,104650.0,0.00014338]
[1737782945551,0.72343105,104660.0,104650.0,0.00014338]
[1737782945947,0.36263105,104660.0,104650.0,0.00014338]
[1737782950154,0.72343105,104660.0,104650.0,0.00014338]
[1737782952362,0.72343105,104660.0,104650.0,0.03352478]
[1737782953067,0.7512673,104660.0,104650.0,0.03352478]
[1737782970869,0.7512673,104660.0,104650.0,0.00014338]
[1737782971681,0.7512673,104660.0,104650.0,0.03360496]
[1737782974477,0.7512673,104660.0,104650.0,0.00014338]
[1737782977265,0.7512673,104660.0,104650.0,0.15305638]
[1737782980878,0.7512673,104660.0,104650.0,0.18651796]
[1737782995073,0.3904673,104660.0,104650.0,0.18651796]
[1737782997173,0.7512673,104660.0,104650.0,0.18651796]
[1737782997373,0.69366926,104660.0,104650.0,0.18651796]
[1737783000788,0.69366926,104660.0,104650.0,0.15305638]
[1737783008885,0.17045472,104660.0,104650.0,0.57145442]
[1737783009086,0.17045472,104660.0,104650.0,0.70903702]
[1737783012689,0.38095076,104660.0,104650.0,0.58913898]
[1737783012990,0.38095076,104660.0,104650.0,0.60491335]
[1737783013794,0.32335272,104660.0,104650.0,0.60491335]
[1737783014086,0.38095076,104660.0,104650.0,0.18651531]
[1737783015000,0.41029033,104660.0,104650.0,0.58720644]
[1737783015188,0.82868837,104660.0,104650.0,0.40083451]
[1737783015486,0.152913,104650.0,104640.0,0.28608855]
[1737783015693,0.152928,104640.0,104630.0,0.34316036]
[1737783015884,0.62892408,104640.0,104630.0,0.34316036]
[1737783019101,0.152942,104630.0,104620.0,0.00014338]
[1737783019294,0.27224004,104630.0,104620.0,0.00014338]
[1737783019482,0.69063808,104630.0,104620.0,0.00014338]
[1737783019680,0.63304004,104630.0,104620.0,0.00014338]
[1737783020495,0.27224004,104630.0,104620.0,0.00014338]
[1737783022497,0.41454065,104630.0,104620.0,0.00014338]
[1737783022896,0.42406504,104630.0,104620.0,0.00014338]
[1737783025798,0.53779377,104630.0,104620.0,0.00014338]
[1737783030500,0.48074696,104630.0,104620.0,0.00014338]
[1737783031590,0.51104696,104630.0,104620.0,0.00014338]
[1737783039907,0.929445,104630.0,104620.0,0.00014338]
[1737783040109,0.26815308,104620.0,104610.0,0.152969]
[1737783041009,0.21055504,104620.0,104610.0,0.152969]
[1737783043204,0.21055504,104620.0,104610.0,0.18642379]
[1737783043410,0.21055504,104620.0,104610.0,0.152969]
[1737783044219,0.21055504,104620.0,104610.0,0.18644221]
[1737783045011,0.46658438,104620.0,104610.0,0.18644221]
[1737783045603,0.52418242,104620.0,104610.0,0.03347321]
[1737783045798,0.88498242,104620.0,104610.0,0.03347321]
[1737783048205,0.73202542,104620.0,104600.0,0.18746096]
[1737783048410,0.21056904,104610.0,104600.0,0.2209367]
[1737783048716,0.21056904,104610.0,104600.0,0.21950312]
[1737783049310,0.27536904,104610.0,104600.0,0.21950312]
[1737783052011,0.28502683,104610.0,104600.0,0.21950312]
[1737783052409,0.28502683,104610.0,104600.0,0.06651912]
[1737783052605,0.28502683,104610.0,104600.0,0.00014338]
[1737783052811,0.45872701,104610.0,104600.0,0.00014338]
[1737783056220,0.62996722,104610.0,104600.0,0.00014338]
[1737783057423,0.99076722,104610.0,104600.0,0.00014338]
[1737783057722,1.04836526,104610.0,104600.0,0.00014338]
[1737783057919,0.99076722,104610.0,104600.0,0.00014338]
[1737783059928,0.84806704,104610.0,104600.0,0.00014338]
[1737783062323,0.90566508,104610.0,104600.0,0.00014338]
[1737783068032,0.75269408,104610.0,104580.0,0.0311]
[1737783068221,0.57139904,104590.0,104580.0,0.0311]
[1737783068731,0.63699904,104590.0,104580.0,0.0311]
[1737783069028,0.153015,104580.0,104560.0,0.800544]
[1737783069328,0.21062804,104570.0,104560.0,0.51398538]
[1737783070031,0.21062804,104570.0,104560.0,0.54747279]
[1737783070428,0.57142804,104570.0,104560.0,0.15318538]
[1737783071034,0.57142804,104570.0,104560.0,0.15418538]
[1737783071432,0.21062804,104570.0,104560.0,0.21178342]
[1737783071933,0.15303,104570.0,104560.0,0.57258342]
[1737783072132,0.21062804,104570.0,104560.0,0.57258342]
[1737783072434,0.21062804,104570.0,104560.0,0.21178342]
[1737783073436,0.21062804,104570.0,104560.0,0.57158342]
[1737783073636,0.21062804,104570.0,104560.0,0.21178342]
[1737783073838,0.21062804,104570.0,104560.0,0.57258342]
[1737783074136,0.21062804,104570.0,104560.0,0.60606977]
[1737783074431,0.409912,104570.0,104560.0,0.57258342]
[1737783074639,0.409912,104570.0,104560.0,0.51498538]
[1737783075739,0.409912,104570.0,104560.0,0.15418538]
[1737783076532,0.409912,104570.0,104560.0,0.51498538]
[1737783077436,0.29603545,104570.0,104560.0,0.51398538]
[1737783082130,0.29603545,104570.0,104560.0,0.15318538]
[1737783083942,0.153045,104560.0,104550.0,0.153056]
[1737783084142,0.26824108,104560.0,104550.0,0.153056]
[1737783084437,0.21064304,104560.0,104550.0,0.153056]
[1737783087036,0.153059,104550.0,104540.0,0.15464764]
[1737783087233,0.21065704,104550.0,104540.0,0.15464764]
[1737783093749,0.153059,104550.0,104540.0,0.57304568]
[1737783094049,0.21065704,104550.0,104540.0,0.54754764]
[1737783094440,0.09525729,104560.0,104550.0,0.153059]
[1737783094645,0.08555079,104560.0,104550.0,0.60385704]
[1737783094945,0.14314883,104560.0,104550.0,0.546259]
[1737783095154,0.14314883,104560.0,104550.0,0.60385704]
[1737783095447,0.08555079,104560.0,104550.0,0.60385704]
[1737783096247,0.14314883,104560.0,104550.0,0.60385704]
[1737783096447,0.08555079,104560.0,104550.0,0.60385704]
[1737783096952,0.14314883,104560.0,104550.0,0.546259]
[1737783097142,0.29619383,104560.0,104550.0,0.546259]
[1737783097750,0.40941062,104560.0,104550.0,0.60385704]
[1737783097944,0.153059,104550.0,104540.0,0.51544564]
[1737783098144,0.21065704,104550.0,104540.0,0.51544564]
[1737783098346,0.153059,104550.0,104540.0,0.57304368]
[1737783100756,0.153059,104550.0,104540.0,0.60653659]
[1737783101353,0.11401993,104560.0,104550.0,0.153059]
[1737783101557,0.11401993,104560.0,104550.0,0.66555704]
[1737783103155,0.14248907,104560.0,104550.0,0.66555704]
[1737783103663,0.14248907,104560.0,104550.0,0.607959]
[1737783104461,0.14248907,104560.0,104550.0,0.69580823]
[1737783104759,0.14248907,104560.0,104550.0,0.72929779]
[1737783105756,0.2303383,104560.0,104550.0,0.54734856]
[1737783105953,0.3833833,104560.0,104550.0,0.513859]
[1737783106357,0.29553407,104560.0,104550.0,0.513859]
[1737783106660,0.35254974,104560.0,104550.0,0.513859]
[1737783107756,0.19950474,104560.0,104550.0,0.60170823]
[1737783107961,0.14234569,104570.0,104550.0,0.63288825]
[1737783108162,0.14234569,104570.0,104560.0,0.63439423]
[1737783108361,0.14234569,104570.0,104560.0,0.66788402]
[1737783109565,0.14234569,104570.0,104560.0,0.58003479]
[1737783110264,0.14234569,104570.0,104560.0,0.546545]
[1737783113367,0.41182944,104580.0,104560.0,0.3935]
[1737783113368,0.24101461,104580.0,104560.0,0.3935]
[1737783113566,0.24101461,104580.0,104570.0,0.51383]
[1737783114066,0.00014338,104580.0,104570.0,0.51383]
[1737783114263,0.00014338,104580.0,104570.0,0.66567923]
[1737783117156,0.00014338,104580.0,104570.0,0.57783]
[1737783119664,0.00014338,104580.0,104570.0,0.66567923]
[1737783120070,0.00014338,104580.0,104570.0,0.67524149]
[1737783122967,0.00014338,104580.0,104570.0,0.58739226]
[1737783123169,0.15315838,104580.0,104570.0,0.18523]
[1737783123375,0.21935838,104580.0,104570.0,0.18523]
[1737783132183,0.00014338,104580.0,104570.0,0.54603]
[1737783132379,0.00014338,104580.0,104570.0,0.63387923]
[1737783132586,0.00014338,104580.0,104570.0,0.54603]
[1737783136082,0.00014338,104580.0,104570.0,0.57823]
[1737783136283,0.00014338,104580.0,104570.0,0.61171112]
[1737783139488,0.00014338,104580.0,104570.0,0.78346602]
[1737783139678,0.00014338,104580.0,104570.0,0.84109271]
[1737783140186,0.00014338,104580.0,104570.0,0.78346602]
[1737783142083,0.00014338,104580.0,104570.0,0.7499849]
[1737783142590,0.00014338,104580.0,104570.0,0.78345721]
[1737783143386,0.00014338,104580.0,104570.0,0.8410839]
[1737783145090,0.00014338,104580.0,104570.0,0.78345721]
[1737783146787,0.00014338,104580.0,104570.0,0.71905721]
[1737783146995,0.06204338,104580.0,104570.0,0.71905721]
[1737783147187,0.06204338,104580.0,104570.0,0.6855849]
[1737783148993,0.06204338,104580.0,104570.0,0.71901812]
[1737783150796,0.06204338,104580.0,104570.0,0.6855849]
[1737783153398,0.06204338,104580.0,104570.0,0.74321159]
[1737783155198,0.06204338,104580.0,104570.0,0.7765623]
[1737783156802,0.00014338,104580.0,104570.0,0.7765623]
[1737783156994,0.31316052,104590.0,104580.0,0.153015]
[1737783157295,0.31316052,104590.0,104580.0,0.69261909]
[1737783159197,0.14234569,104590.0,104580.0,0.69261909]
[1737783159699,0.17239294,104600.0,104580.0,0.71689507]
[1737783159903,0.19786605,104610.0,104600.0,0.152986]
[1737783160204,0.48163794,104620.0,104610.0,0.152971]
[1737783160403,0.48163794,104620.0,104610.0,0.64214131]
[1737783161103,0.48163794,104620.0,104610.0,0.699768]
[1737783162295,0.53926463,104620.0,104610.0,0.604768]
[1737783162506,0.53926463,104620.0,104610.0,0.152971]
[1737783162701,0.72422163,104620.0,104610.0,0.152971]
[1737783162899,0.78184832,104620.0,104610.0,0.152971]
[1737783163812,0.27272659,104620.0,104610.0,0.32449031]
[1737783165308,0.27272659,104620.0,104610.0,0.17151931]
[1737783166599,0.27272659,104620.0,104600.0,0.51392438]
[1737783166800,0.0313,104610.0,104600.0,0.51392438]
[1737783175014,0.215771,104610.0,104600.0,0.51392438]
[1737783175902,0.184271,104610.0,104600.0,0.51392438]
[1737783181605,0.63284059,104610.0,104600.0,0.00014338]
[1737783181809,0.66354059,104610.0,104600.0,0.00014338]
[1737783184218,0.30274059,104610.0,104600.0,0.00014338]
[1737783184420,0.66354059,104610.0,104600.0,0.00014338]
[1737783186810,0.77727624,104610.0,104600.0,0.00014338]
[1737783190524,0.66354059,104610.0,104600.0,0.00014338]
[1737783191422,0.75131018,104610.0,104600.0,0.00014338]
[1737783191909,0.66354059,104610.0,104600.0,0.00014338]
[1737783192317,0.75131018,104610.0,104600.0,0.00014338]
[1737783193420,0.89376182,104610.0,104600.0,0.00014338]
[1737783193816,0.83347112,104610.0,104600.0,0.00014338]
[1737783196227,0.153001,104590.0,104580.0,0.3259663]
[1737783196423,0.21062524,104590.0,104580.0,0.3259663]
[1737783196919,0.24222524,104590.0,104580.0,0.32453231]
[1737783197624,0.24222524,104590.0,104580.0,0.153013]
[1737783201832,0.35613335,104590.0,104580.0,0.153013]
[1737783202230,0.36560705,104590.0,104580.0,0.153013]
[1737783209233,0.50799219,104590.0,104580.0,0.153013]
[1737783211332,0.46691849,104590.0,104580.0,0.513813]
[1737783211541,0.40929425,104590.0,104580.0,0.513813]
[1737783212237,0.46691849,104590.0,104580.0,0.513813]
[1737783215736,0.25629325,104590.0,104580.0,0.57143724]
[1737783216844,0.11390811,104590.0,104580.0,0.74295655]
[1737783218640,0.11390811,104590.0,104580.0,0.83388404]
[1737783218841,0.14252852,104600.0,104580.0,0.75019104]
[1737783219140,0.14252852,104600.0,104590.0,0.66652524]
[1737783219629,0.14252852,104600.0,104590.0,0.69981453]
[1737783220029,0.14252852,104600.0,104590.0,0.66652524]
[1737783222145,0.14252852,104600.0,104590.0,0.69980553]
[1737783222443,0.00014338,104600.0,104590.0,0.87132484]
[1737783223742,0.14238514,104610.0,104600.0,0.152986]
[1737783223936,0.14238514,104610.0,104600.0,0.57141024]
[1737783225839,0.14238514,104610.0,104600.0,0.62903448]
[1737783226140,0.17088302,104620.0,104610.0,0.152971]
[1737783226341,0.31333058,104620.0,104610.0,0.6991438]
[1737783226945,0.31333058,104620.0,104610.0,0.66589524]
[1737783231047,0.00014338,104620.0,104610.0,0.66589524]
[1737783232150,0.00014338,104620.0,104610.0,0.69909477]
[1737783233047,0.00014338,104620.0,104610.0,0.67559218]
[1737783248051,0.00014338,104620.0,104610.0,0.80229642]
[1737783248259,0.00014338,104620.0,104610.0,0.74467218]
[1737783248651,0.00014338,104620.0,104610.0,0.77807469]
[1737783251257,0.11654243,104630.0,104620.0,0.152957]
[1737783251454,0.11654243,104630.0,104620.0,0.60478375]
[1737783251658,0.11654243,104630.0,104620.0,0.66240799]
[1737783252153,0.11654243,104630.0,104620.0,0.70424021]
[1737783252855,0.11654243,104630.0,104620.0,0.66240799]
[1737783253051,0.11654243,104630.0,104620.0,0.70424079]
[1737783254255,0.11654243,104630.0,104620.0,0.64661655]
[1737783254459,0.11654243,104630.0,104620.0,0.60478375]
[1737783254659,0.14684243,104630.0,104620.0,0.60478375]
[1737783254854,0.14684243,104630.0,104620.0,0.57138124]
[1737783256555,0.14684243,104630.0,104620.0,0.97195466]
[1737783259858,0.14684243,104630.0,104620.0,0.91433042]
[1737783262264,0.14684243,104630.0,104620.0,0.94773093]
[1737783263359,0.35740867,104630.0,104620.0,0.79477393]
[1737783263560,0.35740867,104630.0,104620.0,0.43397393]
[1737783263758,0.35740867,104630.0,104620.0,0.1718835]
[1737783264361,0.71820867,104630.0,104620.0,0.1718835]
[1737783266765,0.08534243,104630.0,104620.0,0.74326474]
[1737783266959,0.08534243,104630.0,104620.0,0.77673666]
[1737783267261,0.31325503,104630.0,104620.0,0.6466884]
[1737783267969,0.31325503,104630.0,104620.0,0.60485316]
[1737783268770,0.31325503,104630.0,104620.0,0.64668691]
[1737783269655,0.31325503,104630.0,104620.0,0.60485316]
[1737783270466,0.78430503,104640.0,104620.0,0.77673666]
[1737783272166,0.78430503,104640.0,104620.0,0.62377966]
[1737783272374,0.78430503,104640.0,104630.0,0.152942]
[1737783274976,0.95504467,104640.0,104630.0,0.152942]
[1737783275269,0.94540927,104640.0,104630.0,0.152942]
[1737783278378,0.88778503,104640.0,104630.0,0.21056624]
[1737783278783,0.94540927,104640.0,104630.0,0.152942]
[1737783282777,0.37405503,104640.0,104630.0,0.57136624]
[1737783282971,0.37405503,104640.0,104630.0,0.21056624]
[1737783283387,0.52698303,104640.0,104630.0,0.21056624]
[1737783284993,0.52698303,104640.0,104630.0,0.57136624]
[1737783285382,0.52698303,104640.0,104630.0,0.60483212]
[1737783285785,0.20331539,104640.0,104630.0,0.57136624]
[1737783286587,0.20331539,104640.0,104630.0,0.60483208]
[1737783287989,0.20331539,104640.0,104630.0,0.57136624]
[1737783289784,0.31735894,104640.0,104630.0,0.74324974]
[1737783290287,0.25655894,104640.0,104630.0,0.74324974]
[1737783290489,0.25655894,104640.0,104630.0,0.77574974]
[1737783290792,0.25655894,104640.0,104630.0,0.80774974]
[1737783291287,0.25655894,104640.0,104630.0,0.84121488]
[1737783292991,0.11404355,104640.0,104630.0,0.84121488]
[1737783293193,0.11404355,104640.0,104630.0,0.80774974]
[1737783297296,0.19956342,104640.0,104630.0,0.80774974]
[1737783298494,0.19956342,104640.0,104630.0,0.93445398]
[1737783298694,0.16616102,104640.0,104630.0,1.00091687]
[1737783299099,0.16616102,104640.0,104630.0,1.04274319]
[1737783299697,0.16616102,104640.0,104630.0,1.00091687]
[1737783299901,0.16616102,104640.0,104630.0,1.04274199]
[1737783302299,0.08551987,104650.0,104630.0,1.2734647]
[1737783302501,0.08551987,104650.0,104640.0,0.62897648]
[1737783302703,0.08551987,104650.0,104640.0,0.66243937]
[1737783303798,0.08551987,104650.0,104640.0,0.70426448]
[1737783305197,0.08551987,104650.0,104640.0,0.66243937]
[1737783305808,0.08551987,104650.0,104640.0,0.70426448]
[1737783306111,0.08551987,104650.0,104640.0,0.87596518]
[1737783307407,0.08551987,104650.0,104640.0,0.88544103]
[1737783310210,0.30101787,104660.0,104650.0,0.152913]
[1737783310410,0.30101787,104660.0,104650.0,0.21053724]
[1737783311006,0.14811987,104660.0,104650.0,0.21053724]
[1737783311207,0.14811987,104660.0,104650.0,0.60479703]
[1737783315408,0.14811987,104660.0,104650.0,0.57133724]
[1737783318612,0.14811987,104660.0,104650.0,0.64661747]
[1737783321411,0.14811987,104660.0,104650.0,0.60479512]
[1737783321811,0.14811987,104660.0,104650.0,0.57133724]
[1737783327219,0.14811987,104660.0,104650.0,0.60479672]
[1737783328019,0.14811987,104660.0,104650.0,0.64662107]
[1737783329419,0.14811987,104660.0,104650.0,0.81832177]
[1737783329420,0.0626,104660.0,104650.0,0.81832177]
[1737783330116,0.71678629,104670.0,104650.0,0.66540877]
[1737783330323,0.31468899,104670.0,104660.0,0.62894648]
[1737783330625,0.31468899,104670.0,104660.0,0.70423031]
[1737783331327,0.31325503,104670.0,104660.0,0.70423031]
[1737783334130,0.08561631,104670.0,104660.0,1.10486528]
[1737783334530,0.08561631,104670.0,104660.0,1.11454989]
[1737783334718,0.08561631,104670.0,104660.0,1.18358989]
[1737783337231,0.08561631,104670.0,104660.0,1.10830606]
[1737783337536,0.08561631,104670.0,104660.0,1.05068182]
[1737783338028,0.36161155,104680.0,104670.0,0.152884]
[1737783338229,0.36161155,104680.0,104670.0,0.57130824]
[1737783338626,0.30398731,104680.0,104670.0,0.57130824]
[1737783346335,0.30398731,104680.0,104670.0,0.6047614]
[1737783350541,0.30398731,104680.0,104670.0,0.64657785]
[1737783352840,0.30398731,104680.0,104670.0,0.57130824]
[1737783354744,0.08561631,104680.0,104670.0,0.62893248]
[1737783354946,0.08561631,104680.0,104670.0,0.7973962]
[1737783355133,0.08561631,104680.0,104670.0,0.69795878]
[1737783355439,0.08561631,104680.0,104670.0,0.75558302]
[1737783355830,0.08561631,104680.0,104670.0,0.69795878]
[1737783356730,0.08561631,104680.0,104670.0,0.73977]
[1737783357950,0.08561631,104690.0,104670.0,0.81582027]
[1737783358138,0.08561631,104690.0,104680.0,0.57129324]
[1737783362349,0.11581631,104690.0,104680.0,0.57129324]
[1737783362744,0.11581631,104690.0,104680.0,0.58082619]
[1737783363254,0.2299981,104690.0,104680.0,0.75256424]
[1737783363844,0.2299981,104690.0,104680.0,0.78601322]
[1737783364051,0.2299981,104690.0,104680.0,0.82782445]
[1737783366754,0.2299981,104690.0,104680.0,0.6560864]
[1737783366943,0.2603981,104690.0,104680.0,0.6560864]
[1737783367144,0.31802234,104690.0,104680.0,0.22813157]
[1737783367344,0.50297734,104690.0,104680.0,0.22813157]
[1737783368053,0.4453531,104690.0,104680.0,0.22813157]
[1737783369149,0.50297734,104690.0,104680.0,0.22813157]
[1737783370049,0.41736103,104690.0,104680.0,0.22813157]
[1737783370249,0.41736103,104690.0,104680.0,0.24306504]
[1737783370749,0.41736103,104690.0,104680.0,0.23968504]
[1737783371553,0.77816103,104690.0,104680.0,0.23968504]
[1737783371746,0.77816103,104690.0,104680.0,0.16442247]
[1737783372143,0.77816103,104690.0,104680.0,0.01493347]
[1737783373845,0.77816103,104690.0,104680.0,0.01493493]
[1737783374352,0.80649463,104690.0,104680.0,0.01493493]
[1737783377347,0.86411887,104690.0,104680.0,0.01493493]
[1737783378446,1.03485851,104690.0,104680.0,0.01493493]
[1737783379951,0.88200351,104690.0,104670.0,0.00014338]
[1737783380150,0.62891748,104680.0,104670.0,0.00014338]
[1737783381652,0.57129324,104680.0,104670.0,0.00014338]
[1737783381853,0.57129324,104680.0,104670.0,0.05776762]
[1737783381854,0.152869,104680.0,104670.0,0.05776762]
[1737783382562,0.152869,104680.0,104670.0,0.21065162]
[1737783384047,0.152869,104680.0,104670.0,0.24410604]
[1737783384254,0.152869,104680.0,104670.0,0.28592386]
[1737783384561,0.152869,104680.0,104670.0,0.28592382]
[1737783385559,0.26690998,104680.0,104670.0,0.28592382]
[1737783385859,0.32453422,104680.0,104670.0,0.22829958]
[1737783386254,0.32453422,104680.0,104670.0,0.58909958]
[1737783386962,0.26690998,104680.0,104670.0,0.58909958]
[1737783388361,0.26690998,104680.0,104670.0,0.64672382]
[1737783389664,0.35246779,104680.0,104670.0,0.64672382]
[1737783390664,0.35246779,104680.0,104670.0,0.67692382]
[1737783393058,0.19959879,104680.0,104670.0,0.67692382]
[1737783397459,0.16973222,104680.0,104670.0,0.6918571]
[1737783398362,0.16973222,104680.0,104670.0,0.67692382]
[1737783399565,0.16973222,104680.0,104670.0,0.6918571]
[1737783401065,0.08555781,104680.0,104670.0,0.86359473]
[1737783401572,0.08555781,104680.0,104670.0,0.86359461]
[1737783403863,0.08555781,104690.0,104670.0,0.93964488]
[1737783404060,0.08555781,104690.0,104680.0,0.57129324]
[1737783404278,0.08555781,104690.0,104680.0,0.66149818]
[1737783404659,0.08555781,104690.0,104680.0,0.71912237]
[1737783404874,0.08555781,104690.0,104680.0,0.78142237]
[1737783407874,0.08555781,104690.0,104680.0,0.78142225]
[1737783408375,0.08555781,104690.0,104680.0,0.9531603]
[1737783410166,0.08555781,104690.0,104680.0,0.89553606]
[1737783411073,0.08555781,104690.0,104680.0,0.9053381]
[1737783411978,0.08555781,104690.0,104680.0,0.8430381]
[1737783412376,0.11775781,104690.0,104680.0,0.8430381]
[1737783412584,0.11775781,104690.0,104680.0,0.82810553]
[1737783413681,0.11775781,104690.0,104680.0,0.84303812]
[1737783413977,0.08789262,104690.0,104680.0,0.84303812]
[1737783414773,0.08789262,104690.0,104680.0,0.82810553]
[1737783421576,0.08789262,104690.0,104680.0,0.46730553]
[1737783426488,0.17479636,104690.0,104680.0,0.46730553]
[1737783428586,0.14259636,104690.0,104680.0,0.52492977]
[1737783428792,0.14259636,104690.0,104680.0,0.82810553]
[1737783433692,0.14259636,104690.0,104680.0,1.0570398]
[1737783447600,0.3530756,104690.0,104680.0,0.99941556]
[1737783447896,0.3530756,104690.0,104680.0,0.63861556]
[1737783448091,0.3836756,104690.0,104680.0,0.63861556]
[1737783450403,0.7444756,104690.0,104680.0,0.47594452]
[1737783450592,0.7444756,104690.0,104680.0,0.43412562]
[1737783451303,0.7444756,104690.0,104680.0,0.17173805]
[1737783453396,0.7541407,104690.0,104680.0,0.17173805]
[1737783454899,0.152869,104680.0,104670.0,0.15302438]
[1737783455097,0.27459324,104680.0,104670.0,0.15302438]
[1737783457401,0.41740733,104680.0,104670.0,0.15302438]
[1737783460103,0.53161754,104680.0,104670.0,0.15302438]
[1737783471912,0.4098933,104680.0,104670.0,0.21064862]
[1737783472211,0.4098933,104680.0,104670.0,0.24174862]
[1737783474818,0.46751754,104680.0,104670.0,0.15302438]